Workbook

Sheet Menu principal
I1: Diseñado por Ing. Gregor Rojas Caracas-Venezuela
A2: PROGRAMA DE CÁLCULO DEL RIESGO POR DESCARGAS ATMOSFERICAS BASADO EN IEC 62305-2 2006
A3: CARACTERÍSTICAS DE LA ESTRUCTURA
A4: L | B4: Ingrese el largo de la estructura L (m) | G4: 40
A5: W | B5: Ingrese el ancho de la estructura W (m) | G5: 50
A6: Hb | B6: Ingrese la altura máxima de la estructura H (m) | G6: 25
B7: Marque si la estructura posee parte sobresaliente. | G7: TRUE
A8: Hp | B8: Ingrese la altura máxima de la estructura sobresaliente Hp (m) | G8: =IF(G7=TRUE,H8,G6) -> 5 | H8: 5
A9: Cd/b | B9: Seleccione la ubicación de la estructura | G9: 1
A10: Ce | B10: Seleccione el ambiente donde se localizan las acometidas | G10: 2
A11: ru | B11: Seleccione el tipo de suelo existente en el interior | G11: 1
A12: ra | B12: Seleccione el tipo de terreno existente en el exterior | G12: 4
A13: Ng | B13: Ingrese la densidad de descargas atmosféricas a tierra (Rayos/km²-año) | G13: 20
A14: DDT | B14: Mapa de Venezuela con densidad de descargas atmosféricas a tierra
A15: CARACTERÍSTICAS DE LOS SERVICIOS
A16: ACOMETIDA DE POTENCIA
B17: Marcar si la acometida de potencia proviene de una estructura adyacente | G17: TRUE | H17: 187
A18: La | B18: Ingrese la longitud de la estructura adyacente La (m) | G18: =IF(G17=TRUE,H18,0) -> 10 | H18: 10
A19: Wa | B19: Ingrese el ancho de la estructura adyacente Wa (m) | G19: =IF(G17=TRUE,H19,0) -> 5 | H19: 5
A20: Ha | B20: Ingrese la altura de la estructura adyacente Ha (m) | G20: =IF(G17=TRUE,H20,0) -> 15 | H20: 15
A21: ρ | B21: Resistividad del suelo ρ (Ωm) (Considerar hasta un máximo de 500 Ωm) | G21: 150
A22: Cd/a | B22: Seleccione como es el lugar donde se encuentra el servicio | G22: 3
B23: Seleccione el tipo de la acometida | E23: Aérea | G23: 2 | I23: Enterrada o Subterránea
A24: Hc | B24: Ingrese la altura de los conductores del servicio sobre el terreno Hc (m) | G24: =IF(G23=1,H24,0) -> 0 | H24: 0
A25: Lc | B25: Ingrese la longitud de la acometida de servicio Lc (m) | G25: 0
A26: Ct | B26: Seleccione la existencia de transformador AT/BT en la acometida | G26: 2
A27: ACOMETIDA DE TELECOMUNICACIONES
B28: Marcar si la acometida proviene de una estructura adyacente | G28: FALSE
A29: La | B29: Ingrese la longitud de la estructura adyacente La (m) | G29: =IF(G28=TRUE,H29,0) -> 0 | H29: 0
A30: Wa | B30: Ingrese el ancho de la estructura adyacente Wa (m) | G30: =IF(G28=TRUE,H30,0) -> 0 | H30: 0
A31: Ha | B31: Ingrese la altura de la estructura adyacente Ha (m) | G31: =IF(G28=TRUE,H31,0) -> 0 | H31: 0
A32: Cd/a | B32: Seleccione como es el lugar donde se encuentra el servicio | G32: 3
A33: n | B33: Ingrese el número de servicios conectados de comunicaciones | G33: 0 | H33: 4
B34: Seleccione el tipo de la acometida | E34: Aérea | G34: 1 | I34: Enterrada o Subterránea
A35: Hc | B35: Ingrese la altura de los conductores de comunicaciones desde el suelo Hc (m) | G35: =IF($G$34=0,0,IF($G$34=1,$H$35,0)) -> 0 | H35: 0
B36: Ingrese la longitud de la acometida de servicio (m) | G36: =IF(G33=0,0,H36) -> 0 | H36: 0
A37: OTRO TIPO DE ACOMETIDA
B38: Marcar si la acometida de otro tipo proviene de una estructura adyacente | G38: FALSE
A39: La | B39: Longitud de la estructura adyacente La (m) | G39: =IF(G38=TRUE,H39,0) -> 0 | H39: 0
A40: Wa | B40: Ancho de la estructura adyacente Wa (m) | G40: =IF(G38=TRUE,H40,0) -> 0 | H40: 0
A41: Ha | B41: Altura de la estructura adyacente Ha (m) | G41: =IF(G38=TRUE,H41,0) -> 0 | H41: 0
A42: Cd/a | B42: Seleccione como es el lugar donde se encuentra el servicio | G42: 3
A43: n | B43: Ingrese el número de servicios conectados | G43: 0 | H43: 9
B44: Seleccione el tipo de la acometida | E44: Aérea | G44: 1 | I44: Enterrada o Subterránea
A45: Hc | B45: Ingrese la altura de los conductores desde el suelo Hc (m) | G45: =IF($G$44=0,0,IF($G$44=1,$H$45,0)) -> 0 | H45: 0
B46: Ingrese la longitud de la acometida de servicio (m) | F46: 0 | G46: 0 | H46: 49
A47: ACCIONES PREVENTIVAS FRENTE AL RIESGO POR RAYO
A48: Marque las medidas adoptadas frente a los voltajes de paso y contacto (PA)
B49: Sin medidas de protección | E49: TRUE | F49: Colocación de avisos o señalizaciones de advertencia | K49: FALSE
B50: Aislamiento eléctrico de conductores expuestos (Bajantes) | E50: FALSE | F50: Empleo de refuerzos estructurales (Cabillas) como bajantes | K50: FALSE
B51: Equipotencialización efectiva del terreno | E51: FALSE | F51: DPS previstos de conexión equipotencial (IEC 62305-3) | K51: FALSE
A52: Seleccione el nivel de protección de la estructura utilizado contra rayos (PB)
B53: No protegida por un SPCR (Sistema Protección Contra Rayo) | E53: 1 | F53: Protegida por un SPCR Nivel I
B54: Protegida por un SPCR Nivel IV | F54: Protegida por SPCR Nivel I y cabillas como bajantes
B55: Protegida por un SPCR Nivel III | F55: SPCR completo, techo metálico con armaduras metálicas continuas actuando como conductores de bajada
B56: Protegida por un SPCR Nivel II
A57: Seleccione el nivel de protección interno utilizado contra sobrevoltajes (PC)
B58: Sin protección coordinada de dispositivos DPS | E58: 1 | F58: Protección interna coordinada con DPS Nivel I
B59: Protección interna coordinada con DPS Nivel III o IV | F59: Utilización de DPS con mejores características al Nivel I
B60: Protección interna coordinada con DPS Nivel II | F60: NOTA: Los DPS son Dispositivos Protección Contra Sobrevoltajes
A61: Seleccione el tipo de cableado interno
A62: KS3 | B62: Sin apantallar y sin precauciones de cableado para evitar bucles, área del lazo en el orden de 50 m2 | K62: 1
A63: KS3 | B63: Sin apantallar y con precauciones de cableado para evitar grandes bucles, área del lazo en el orden de 10 m2
A64: KS3 | B64: Sin apantallar y con precauciones de cableado para evitar bucles, área del lazo en el orden de 0,5 m2
A65: KS3 | B65: Apantallado con resistencia de la pantalla entre 5<Rs<20 Ω/Km, puesta a tierra en ambos extremos a la barra equipotencial
A66: KS3 | B66: Apantallado con resistencia de la pantalla entre 1<Rs<5 Ω/Km, puesta a tierra en ambos extremos a la barra equipotencial
A67: KS3 | B67: Apantallado con resistencia de la pantalla entre 1<Rs Ω/Km, puesta a tierra en ambos extremos a la barra equipotencial
A68: KS3 | B68: Marque la casilla si la pantalla del cable esta conectada en ambos extremos a la barra equipotencial donde se conecta el equipo | K68: FALSE
A69: KS1 | B69: Si la estructura a proteger posee pantallas metálicas continuas de espesor entre 0,1 mm y 0,5 mm marque la casilla | K69: FALSE
A70: w | B70: Ancho de la malla de la pantalla espacial o malla de conductores de bajada o distancia entre columnas metálicas cuando actúan como SPCR natural w (m). | G70: =H70/1000 -> 0.031 | H70: 31
A71: TIPOS DE CANALIZACION
B72: Canalización metálica PAT ambos extremos a barra equipotencial | E72: 1 | F72: Canalización NO Metálica
B73: Están las estructuras metálicas, canalizaciones, acometidas de servicio y DPS conectados equipotencialmente según IEC 62305-3 | K73: FALSE
A74: Seleccione el menor valor de voltaje soportable al impulso Uw del equipamiento
B75: Hasta un máximo de 1,5 KV | E75: 1 | F75: Hasta un máximo de 4 KV
B76: Hasta un máximo de 2,5 KV | F76: Hasta un máximo de 6 KV
A77: Seleccione el voltaje soportado al impulso Uw en función del tipo de cable
B78: Cable línea de telecomunicación (aislante de papel) 1,5 KV | E78: 1 | F78: Cable de potencia 60 KV
B79: Cable línea de telecomunicación (aislante de PVC o PE) 5 KV | F79: Cable de potencia 75 KV
B80: Cable de potencia 15 KV | F80: Cable de potencia 95 KV
B81: Cable de potencia 45 KV | F81: Cable de potencia 125 KV
A82: Acceso a las hojas de cálculo y a las tablas de factores
A84: EVALUACIÓN DE PÉRDIDAS
A85: PÉRDIDAS DE VIDAS HUMANAS
A86: Lo | B86: Es una estructura con riesgo de explosión | E86: 2 | F86: Es una Instalación médica o hospital
A87: Lf | B87: Seleccione la actividad o el uso destinado a la estructura | G87: 1
A88: Lt | B88: Marque si existe la posibilidad de que seres vivos estén expuestos a voltajes de paso y contacto: dentro, fuera o en ambos sitios de la estructura | G88: TRUE | H88: En el interior de la estructura | K88: TRUE
A89: Lt | G89: TRUE | H89: En el exterior de la estructura | K89: FALSE
A90: Seleccione el riesgo de incendio Rf
B91: Ninguno | E91: 2 | F91: Alto (Estructura fabricada con material combustible)
B92: Bajo (Almacena material combustible ocasionalmente) | F92: Explosiva (Estructura con riesgo de explosión)
B93: Normal (Almacena material combustible en forma permanente)
A94: Seleccione la medida de prevención para reducir las consecuencias por fuego
A95: rP | G95: 1
A96: Seleccione la situación especial de peligro
A97: hz | G97: 1
A98: PÉRDIDA DE SERVICIOS ESCENCIALES
B99: Gas, agua | E99: 1 | F99: Red de potencia, Telecomunicaciones, TV
A100: PÉRDIDA DE HERENCIA CULTURAL IRREEMPLAZABLE
B101: Seleccione si existe herencia cultural irreemplazable en la edificación | K101: TRUE
A102: PÉRDIDAS ECONOMINAS
A103: Lo | B103: Seleccione la actividad o el uso destinado a la estructura | G103: 2
A104: Lf | B104: Seleccione la actividad o el uso destinado a la estructura | G104: 1
B105: Marque la casilla si es una propiedad donde puede producirse perdida de animales | K105: FALSE
A106: EVALUACIÓN DEL RIESGO DE LA ESTRUCTURA
A107: RESULTADO DE RIESGO EN PERDIDAS DE VIDAS
A108: R1 | B108: VALOR CALCULADO DEL RIESGO | E108: < | F108: RT | G108: VALOR TIPICO DE RIESGO TOLERABLE
B109: =IF($E$86=4,Calculos!$B$316,Calculos!$B$317) -> 2.931221825e-05 | E109: =IF(B109>G109,">",IF(B109<G109,"<","=")) -> > | G109: =10^-5 -> 1e-05
B110: =IF(B109>G109," DEBIDO A QUE R1 > RT ES NECESARIA PROTECCION CONTRA RAYOS DE LA ESTRUCTURA"," DEBIDO A QUE R1 < RT EL RIESGO ESTA DENTRO DE MARGENES REQUERIDOS") -> DEBIDO A QUE R1 > RT ES NECESARIA PROTECCION CONTRA RAYOS DE LA ESTRUCTURA
A111: RESULTADO DE RIESGO EN PERDIDAS SERVICIO PÚBLICO
A112: R2 | B112: VALOR CALCULADO DEL RIESGO | E112: < | F112: RT | G112: VALOR TIPICO DE RIESGO TOLERABLE
B113: =Calculos!B318 -> 0.003241066141 | E113: =IF(B113>G113,">",IF(B113<G113,"<","=")) -> > | G113: =10^-3 -> 0.001
B114: =IF(B113>G113," DEBIDO A QUE R2 > RT ES NECESARIA PROTECCION CONTRA RAYOS PARA EVITAR PERDIDAS DE SERVICIOS","DEBIDO A QUE R2 < RT EL RIESGO ESTA DENTRO DE MARGENES REQUERIDOS") -> DEBIDO A QUE R2 > RT ES NECESARIA PROTECCION CONTRA RAYOS PARA EVITAR PERDIDAS DE SERVICIOS
A115: RESULTADO DE RIESGO EN PATRIMONIO CULTURAL
A116: R3 | B116: VALOR CALCULADO DEL RIESGO | E116: < | F116: RT | G116: VALOR TIPICO DE RIESGO TOLERABLE
B117: =Calculos!B319 -> 2.916979189e-05 | E117: =IF(B117>G117,">",IF(B117<G117,"<","=")) -> < | G117: =10^-3 -> 0.001
B118: =IF(B117>G117," DEBIDO A QUE R3 > RT ES NECESARIA PROTECCION CONTRA RAYOS DE LA ESTRUCTURA"," DEBIDO A QUE R3 < RT EL RIESGO ESTA DENTRO DE MARGENES REQUERIDOS") -> DEBIDO A QUE R3 < RT EL RIESGO ESTA DENTRO DE MARGENES REQUERIDOS
A119: RESULTADO DE RIESGO EN PERDIDAS ECONOMICAS
A120: R4 | B120: VALOR CALCULADO DEL RIESGO | E120: < | F120: RT | G120: VALOR TIPICO DE RIESGO TOLERABLE
B121: =IF($K$105=TRUE,Calculos!$B$320,Calculos!$B$321) -> 0.003211896349 | E121: =IF(B121>G121,">",IF(B121<G121,"<","=")) -> > | G121: =10^-4 -> 0.0001
B122: =IF(B121>G121," DEBIDO A QUE R4 > RT ES NECESARIA PROTECCION CONTRA RAYOS DE LA ESTRUCTURA"," DEBIDO A QUE R4 < RT EL RIESGO ESTA DENTRO DE MARGENES REQUERIDOS") -> DEBIDO A QUE R4 > RT ES NECESARIA PROTECCION CONTRA RAYOS DE LA ESTRUCTURA

Sheet Calculos
I1: Diseñado por Ing. Gregor Rojas Caracas-Venezuela
A2: HOJA DE CALCULOS
A4: PROMEDIO ANUAL DE DESCARGAS
A6: CALCULO DEL NUMERO DE SUCESOS PELIGROSOS POR DESCARGA EN UNA ESTRUCTURA
A7: Admax | B7: =('Menu principal'!$G$4*'Menu principal'!$G$5)+((6*'Menu principal'!$G$8)*('Menu principal'!$G$4+'Menu principal'!$G$5))+(9*PI()*'Menu principal'!$G$8^2) -> 5406.858347 | C7: Ad' | D7: =9*PI()*('Menu principal'!$G$8^2) -> 706.8583471 | E7: A'D = 9 X pi X (HP)2
A8: Ad=Admin | B8: =('Menu principal'!$G$4*'Menu principal'!$G$5)+((6*'Menu principal'!$G$6)*('Menu principal'!$G$4+'Menu principal'!$G$5))+(9*PI()*'Menu principal'!$G$6^2) -> 33171.45868 | C8: Ad'' | D8: =IF($B$8>$D$7,$B$8,$D$7) -> 33171.45868 | E8: AD = L X W + 6H X (L + W) +pi X 9H2
A9: ND | B9: ='Menu principal'!$G$13*(IF('Menu principal'!$G$7=TRUE,$D$8,$B$8))*(CHOOSE('Menu principal'!$G$9,0.25,0.5,1,2))*10^-6 -> 0.1658572934 | E9: ND = NG X Ad X Cd X 10-6
A11: CALCULO DEL NUMERO DE SUCESOS PELIGROSOS ESTRUCTURA ADYACENTE (ACOMETIDA DE POTENCIA)
A12: Ad/a(P) | B12: ='Menu principal'!$G$18*'Menu principal'!$G$19+6*'Menu principal'!$G$20*('Menu principal'!$G$18+'Menu principal'!$G$19)+9*PI()*'Menu principal'!$G$20^2 -> 7761.725124 | E12: Ad/a(P) = L X W + 6H X (L + W) +pi X 9H2
A13: Nd/a(P) | B13: ='Menu principal'!$G$13*$B$12*CHOOSE('Menu principal'!$G$22,0.25,0.5,1,2)*IF('Menu principal'!$G$26=1,0.2,1)*10^-6 -> 0.1552345025 | E13: Nd/a(P) = NG X Ad/a(P) X CD/a(P) X Ct X 10-6
A15: CALCULO DEL NUMERO DE SUCESOS PELIGROSOS ESTRUCTURA ADYACENTE (ACOMETIDA DE COMUNICACIONES)
A16: Ad/a(T) | B16: ='Menu principal'!$G$29*'Menu principal'!$G$30+6*'Menu principal'!$G$31*('Menu principal'!$G$29+'Menu principal'!$G$30)+9*PI()*'Menu principal'!$G$31^2 -> 0 | E16: Ad/a(T) = L X W + 6H X (L + W) +pi X 9H2
A17: Nd/a(T) | B17: ='Menu principal'!$G$13*$B$16*CHOOSE('Menu principal'!$G$32,0.25,0.5,1,2)*10^-6 -> 0 | E17: Nd/a(T) = NG X Ad/a(T) X CD/a(T) X 10-6
A19: CALCULO DEL NUMERO DE SUCESOS PELIGROSOS ESTRUCTURA ADYACENTE (ACOMETIDA OTROS)
A20: Ad/a(O) | B20: ='Menu principal'!$G$39*'Menu principal'!$G$40+6*'Menu principal'!$G$41*('Menu principal'!$G$39+'Menu principal'!$G$40)+9*PI()*'Menu principal'!$G$41^2 -> 0 | E20: Ad/a(O) = L X W + 6H X (L + W) +pi X 9H2
A21: Nd/a(O) | B21: ='Menu principal'!$G$13*$B$20*CHOOSE('Menu principal'!$G$42,0.25,0.5,1,2)*1*10^-6 -> 0 | E21: Nd/a(O) = NG X Ad/a(O) X CD/a(O) X 10-6
A23: CALCULO DEL PROMEDIO ANUAL DE SUCESOS PELIGROSOS POR DESCARGAS CERCA DE LA ESTRUCTURA
A24: AM | B24: =2*250*('Menu principal'!$G$4+'Menu principal'!$G$6)+PI()*250^2 -> 228849.5408 | C24: NM | D24: ='Menu principal'!$G$13*($B$24-IF('Menu principal'!$G$7=TRUE,$D$8,$B$8))*(CHOOSE('Menu principal'!$G$9,0.25,0.5,1,2))*10^-6 -> 0.9783904109 | E24: AM = 2 X 250 X (L + W) + pi X 2502
A25: NM | B25: =IF($D$24<0,0,$D$24) -> 0.9783904109 | E25: NM = NG X (AM - Ad/b X Cd/b) X 10-6
A27: CALCULO DEL PROMEDIO ANUAL DE DESCARGAS SOBRE LAS ACOMETIDAS DE SERVICIOS DE POTENCIA
A28: AL(P) | B28: =IF('Menu principal'!$G$23=1,$D$28,$D$29) -> -1469.693846 | C28: AL Aérea | D28: =('Menu principal'!$G$25-3*('Menu principal'!$G$20+'Menu principal'!$G$6))*6*'Menu principal'!$G$24 -> 0 | E28: AL aérea = (LC - 3(Ha + Hb) X 6Hc | I28: AL enterrada = (LC - 3(Ha + Hb) X RAIZ ρ
A29: NL(P) | B29: ='Menu principal'!$G$13*$B$28*(CHOOSE('Menu principal'!$G$22,0.25,0.5,1,2))*(IF('Menu principal'!$G$26=1,0.2,1))*10^-6 -> -0.02939387691 | C29: AL Enterrada | D29: =('Menu principal'!$G$25-3*('Menu principal'!$G$20+'Menu principal'!$G$6))*SQRT('Menu principal'!$G$21) -> -1469.693846 | E29: NL(P) = NG X AL(P) X CDa(P) X Ct X 10-6
A31: CALCULO DEL PROMEDIO ANUAL DE DESCARGAS SOBRE LAS ACOMETIDAS DE SERVICIOS DE COMUNICACIONES
A32: AL(T) | B32: =IF('Menu principal'!$G$34=1,$D$32,$D$33) -> 0 | C32: AL Aérea | D32: =('Menu principal'!$G$36-3*('Menu principal'!$G$31+'Menu principal'!G6))*6*'Menu principal'!$G$35 -> 0 | E32: AL aérea = (LC - 3(Ha + Hb) X 6Hc | I32: AL enterrada = (LC - 3(Ha + Hb) X RAIZ ρ
A33: NL(T) | B33: ='Menu principal'!$G$13*$B$32*(CHOOSE('Menu principal'!$G$32,0.25,0.5,1,2))*10^-6 -> 0 | C33: AL Enterrada | D33: =('Menu principal'!$G$36-3*('Menu principal'!$G$31+'Menu principal'!G6))*SQRT('Menu principal'!$G$21) -> -918.5586535 | E33: NL(T) = NG X AL(T) X CD/a(T) X 10-6
A35: CALCULO DEL PROMEDIO ANUAL DE DESCARGAS SOBRE LAS ACOMETIDAS DE SERVICIOS DE OTRO
A36: AL(O) | B36: =IF('Menu principal'!$G$44=1,$D$36,$D$37) -> 0 | C36: AL Aérea | D36: =('Menu principal'!$G$46-3*('Menu principal'!$G$41+'Menu principal'!$G$6))*6*'Menu principal'!$G$45 -> 0 | E36: AL aérea = (LC - 3(Ha + Hb) X 6Hc | I36: AL enterrada = (LC - 3(Ha + Hb) X RAIZ ρ
A37: NL(O) | B37: ='Menu principal'!$G$13*$B$36*(CHOOSE('Menu principal'!$G$42,0.25,0.5,1,2))*10^-6 -> 0 | C37: AL Enterrada | D37: =('Menu principal'!$G$46-3*('Menu principal'!$G$41+'Menu principal'!$G$6))*SQRT('Menu principal'!$G$21) -> -918.5586535 | E37: NL(O) = NG X AL(O) X CD/a(O) X 10-6
A39: CALCULO DEL PROMEDIO ANUAL DE DESCARGAS CERCA DE LAS ACOMETIDAS DE POTENCIA
A40: Ai(P) | B40: =IF('Menu principal'!$G$23=1,$D$40,$D$41) -> 0 | C40: Ai Aérea | D40: =1000*'Menu principal'!$G$25 -> 0 | E40: Ai aérea = 1000 x LC | I40: Ai enterrada = 25 x LC X RAIZ ρ
A41: Ni(P) | B41: ='Menu principal'!$G$13*$B$40*(CHOOSE('Menu principal'!$G$10,0.01,0.1,0.5,1))*(CHOOSE('Menu principal'!$G$26,0.2,1))*10^-6 -> 0 | C41: Ai Enterrada | D41: =25*'Menu principal'!$G$25*SQRT('Menu principal'!$G$21) -> 0 | E41: Ni(P) = NG X Ai(P) X CD/a(P) X Ct X 10-6
A43: CALCULO DEL PROMEDIO ANUAL DE DESCARGAS CERCA DE LAS ACOMETIDAS DE COMUNICACIONES
A44: Ai(T) | B44: =IF('Menu principal'!$G$34=1,$D$44,$D$45) -> 0 | C44: Ai Aérea | D44: =1000*'Menu principal'!$G$36 -> 0 | E44: Ai aérea = 1000 x LC | I44: Ai enterrada = 25 x LC X RAIZ ρ
A45: Ni(T) | B45: ='Menu principal'!$G$13*$B$44*(CHOOSE('Menu principal'!$G$10,0,0.1,0.5,1))*10^-6 -> 0 | C45: Ai Enterrada | D45: =25*'Menu principal'!$G$36*SQRT('Menu principal'!$G$21) -> 0 | E45: Ni(T) = NG X Ai(T) X CD/a(T) X 10-6
A47: CALCULO DEL PROMEDIO ANUAL DE DESCARGAS CERCA DE LAS ACOMETIDAS DE OTRO
A48: Ai(O) | B48: =IF('Menu principal'!$G$44=1,$D$48,$D$49) -> 0 | C48: Ai Aérea | D48: =1000*'Menu principal'!$G$46 -> 0 | E48: Ai aérea = 1000 x LC | I48: Ai enterrada = 25 x LC X RAIZ ρ
A49: Ni(O) | B49: ='Menu principal'!$G$13*$B$48*(CHOOSE('Menu principal'!$G$10,0,0.1,0.5,1))*10^-6 -> 0 | C49: Ai Enterrada | D49: =25*'Menu principal'!$G$46*SQRT('Menu principal'!$G$21) -> 0 | E49: Ni(O) = NG X Ai(O) X CD/a(O) X 10-6
A51: PROBABILIDADES DE DAÑOS Y LESIONES
A53: PROBABILIDAD DE DAÑOS A SERES VIVOS (DESCARGAS EN LA ESTRUCTURA)
A54: PA | B54: =IF('Menu principal'!$E$49=TRUE,1,1)*IF('Menu principal'!$E$50=TRUE,10^-2,1)*IF('Menu principal'!$E$51=TRUE,10^-2,1)*IF('Menu principal'!$K$49=TRUE,10^-1,1)*IF('Menu principal'!$K$50=TRUE,0,1) -> 1 | G54: PA = PTA x PB
A56: PROBABILIDAD DE DAÑOS FISICOS EN UNA ESTRUCTURA (DESCARGAS EN LA ESTRUCTURA)
A57: PB | B57: =CHOOSE('Menu principal'!$E$53,1,0.2,0.1,0.05,0.02,0.01,0.001) -> 1
A59: PROBABILIDAD DE FALLA DE LOS SISTEMAS INTERNOS (DESCARGAS CERCA DE LA ESTRUCTURA)
A60: Pc=PDPS | B60: =CHOOSE('Menu principal'!$E$58,1,0.03,0.02,0.01,0.005) -> 1
A62: PROBABILIDAD PM DE FALLA DE LOS SISTEMAS INTERNOS (DESCARGAS CERCA DE LA ESTRUCTURA)
A63: KS1 | B63: =IF('Menu principal'!$K$69=TRUE,10^-4,0.12*'Menu principal'!$G$70) -> 0.00372 | C63: KS2 | D63: =$B$63 -> 0.00372 | G63: KS1 = 0,12 x Wm | I63: KS2 = KS1
A64: KS3 | B64: =IF('Menu principal'!$E$72=1,$D$64*0.1,$D$64) -> 0.1 | C64: Ks3' | D64: =CHOOSE('Menu principal'!$K$62,1,0.2,0.02,0.001,0.0002,0.0001) -> 1 | E64: KS4 | F64: =1.5/CHOOSE('Menu principal'!E78,1.5,5,15,45,60,75,95,125) -> 1 | G64: KS3 = función tabla B.5 | I64: KS4 = 1,5/ Uw
A65: KMS | B65: =$B$63*$D$63*$B$64*$F$64 -> 1.38384e-06 | G65: KMS = KS1 x KS2 x KS3 x KS4
A66: PMS | B66: =IF($B$65>=0.4,1,IF($B$65>=0.15,0.9,IF($B$65>=0.07,0.5,IF($B$65>=0.035,0.1,IF($B$65>=0.021,0.01,IF($B$65>=0.016,0.005,IF($B$65>=0.015,0.003,IF($B$65>=0.014,0.001,0.0001)))))))) -> 0.0001 | G66: PMS = función de valores tabla B.4
A67: PM | B67: =IF('Menu principal'!$E$58=1,$B$66,IF($B$66<$B$60,$B$66,$B$60)) -> 0.0001 | G67: PM = función del menor valor entre PMS y PDPS
A69: PROBABILIDAD DE DAÑOS A SERES VIVOS (DESCARGAS EN UN SERVICIO CONECTADO)
C70: PLD(1,5) | D70: =IF('Menu principal'!$K$62=4,1,IF('Menu principal'!$K$62=5,0.8,IF('Menu principal'!$K$62=6,0.4,1))) -> 1 | E70: PLD(4) | F70: =IF('Menu principal'!$K$62=4,0.9,IF('Menu principal'!$K$62=5,0.3,IF('Menu principal'!$K$62=6,0.04,1))) -> 1 | G70: PLD = función de valores tabla B.6
C71: PLD(2,5) | D71: =IF('Menu principal'!$K$62=4,0.95,IF('Menu principal'!$K$62=5,0.6,IF('Menu principal'!$K$62=6,0.2,1))) -> 1 | E71: PLD(6) | F71: =IF('Menu principal'!$K$62=4,0.8,IF('Menu principal'!$K$62=5,0.1,IF('Menu principal'!$K$62=6,0.02,1))) -> 1 | G71: PLD = función de valores tabla B.6
A72: PLD | B72: =IF('Menu principal'!$E$75=1,$D$70,IF('Menu principal'!$E$75=2,$D$71,IF('Menu principal'!$E$75=3,$F$70,$F$71))) -> 1 | C72: Menor valor entre PDPS y PLD | F72: =IF($B$72<$B$60,$B$72,$B$60) -> 1
A73: PU | B73: =IF('Menu principal'!$K$51=TRUE,$F$72,$B$72) -> 1 | G73: PU = PTU x PEB x PLD x CLD
A75: PROBABILIDAD DE DAÑOS FISICOS EN UNA ESTRUCTURA (DESCARGAS EN UN SERVICIO CONECTADO)
A76: PV | B76: =IF('Menu principal'!$K$73=TRUE,$F$72,$B$72) -> 1 | G76: PV = PEB x PLD x CLD
A78: PROBABILIDAD DE FALLA DE LOS SISTEMAS INTERNOS (DESCARGAS EN UN SERVICIO CONECTADO)
A79: PW | B79: =IF('Menu principal'!$K$73=TRUE,$F$72,$B$72) -> 1 | G79: PW = PSPD x PLD x CLD
A81: PROBABILIDAD DE FALLA DE LOS SISTEMAS INTERNOS (DESCARGAS CERCA DE UN SERVICIO CONECTADO)
C82: PLI(1,5) | D82: =IF('Menu principal'!$K$62=1,1,IF('Menu principal'!$K$62=2,1,IF('Menu principal'!$K$62=3,1,IF('Menu principal'!$K$68=FALSE,0.5,IF('Menu principal'!$K$62=4,0.15,IF('Menu principal'!$K$62=5,0.04,IF('Menu principal'!$K$62=6,0.02,1))))))) -> 1 | E82: PLI(4) | F82: =IF('Menu principal'!$K$62=1,0.2,IF('Menu principal'!$K$62=2,0.2,IF('Menu principal'!$K$62=3,0.2,IF('Menu principal'!$K$68=FALSE,0.1,IF('Menu principal'!$K$62=4,0.03,IF('Menu principal'!$K$62=5,0.008,IF('Menu principal'!$K$62=6,0.004,1))))))) -> 0.2
C83: PLI(2,5) | D83: =IF('Menu principal'!$K$62=1,0.4,IF('Menu principal'!$K$62=2,0.4,IF('Menu principal'!$K$62=3,0.4,IF('Menu principal'!$K$68=FALSE,0.2,IF('Menu principal'!$K$62=4,0.06,IF('Menu principal'!$K$62=5,0.02,IF('Menu principal'!$K$62=6,0.008,1))))))) -> 0.4 | E83: PLI(6) | F83: =IF('Menu principal'!$K$62=1,0.1,IF('Menu principal'!$K$62=2,0.1,IF('Menu principal'!$K$62=3,0.1,IF('Menu principal'!$K$68=FALSE,0.05,IF('Menu principal'!$K$62=4,0.02,IF('Menu principal'!$K$62=5,0.004,IF('Menu principal'!$K$62=6,0.002,1))))))) -> 0.1
A84: PLI | B84: =IF('Menu principal'!$E$75=1,$D$82,IF('Menu principal'!$E$75=2,$D$83,IF('Menu principal'!$E$75=3,$F$82,$F$83))) -> 1 | C84: Menor valor entre PDPS y PLI | F84: =IF($B$84<$B$60,$B$84,$B$60) -> 1
A85: PZ | B85: =IF('Menu principal'!$E$58=1,$B$84,$F$84) -> 1 | G85: PZ = PSPD x PLI x CLI
A87: PERDIDAS POR AÑO
A89: PÉRDIDA DE VIDAS POR VOLTAJES DE PASO Y CONTACTO EN EL EXTERIOR DE LA ESTRUCTURA
A90: ra | B90: =CHOOSE('Menu principal'!$G$12,10^-2,10^-3,10^-4,10^-5) -> 1e-05 | C90: Lt1 | D90: =IF('Menu principal'!$G$89=TRUE,10^-2,0) -> 0.01
A91: LA1 | B91: =$B$90*$D$90 -> 1e-07 | G91: LA = ra X Lt
A93: PÉRDIDA DE VIDAS POR FUEGO O EXPLOSIÓN DENTRO DE LA ESTRUCTURA POR IMPACTO SOBRE LA ESTRUCTURA
A94: rp | B94: =IF('Menu principal'!$E$86=1,1,CHOOSE('Menu principal'!$G$95,1,0.5,0.2)) -> 1 | C94: hz | D94: =CHOOSE('Menu principal'!$G$97,1,2,5,5,10,20,50) -> 1 | E94: rf | F94: =CHOOSE('Menu principal'!$E$91,0,10^-3,10^-2,10^-1,1) -> 0.001 | G94: Lf1 | H94: =CHOOSE('Menu principal'!$G$87,10^-1,5*10^-2,2*10^-2,10^-2) -> 0.1
A95: LB1 | B95: =$B$94*$D$94*$F$94*$H$94 -> 0.0001 | G95: LB = LV = rP X hz X rf X Lf
A97: PÉRDIDAS DE VIDAS POR FALLA SISTEMAS INTERNOS POR IER (IMPULSOS ELECTROMAGNETICOS DEL RAYO) A CAUSA DE DESCARGAS EN LA ESTRUCTURA
A98: LC1 | B98: =$D$98 -> 0.001 | C98: Lo1 | D98: =CHOOSE('Menu principal'!$E$86,10^-1,10^-3) -> 0.001 | G98: LC = LM = LW = LZ = LO
A100: PÉRDIDA DE VIDAS POR FALLA DE SISTEMAS INTERNOS POR IER (IMPULSOS ELECTROMAGNETICOS DEL RAYO) A CAUSA DE DESCARGAS CERCA DE LA ESTRUCTURA
A101: LM1 | B101: =$B$98 -> 0.001 | G101: LC = LM = LW = LZ = LO
A103: PÉRDIDA DE VIDAS POR VOLTAJES DE CONTACTO EN EL INTERIOR DE LA ESTRUCTURA
A104: ru | B104: =CHOOSE('Menu principal'!$G$11,10^-2,10^-3,10^-4,10^-5) -> 0.01 | C104: LtU | D104: =IF('Menu principal'!$G$88=TRUE,10^-4,0) -> 0.0001
A105: LU1 | B105: =$B$104*$D$104 -> 1e-06 | G105: LU = rU X Lt
A107: PÉRDIDA DE VIDAS POR DAÑOS FISICOS A CAUSA DE DESCARGAS EN ACOMETIDAS DE SERVICIOS
A108: LV1 | B108: =$B$95 -> 0.0001
A110: PÉRDIDAS DE VIDAS POR FALLA SISTEMAS INTERNOS POR IER (IMPULSOS ELECTROMAGNETICOS DEL RAYO) A CAUSA DE DESCARGAS SOBRE LA ACOMETIDA DE SERVICIOS
A111: LW1 | B111: =$B$101 -> 0.001 | G111: LC = LM = LW = LZ = LO
A113: PÉRDIDAS DE VIDAS POR FALLA SISTEMAS INTERNOS POR IER (IMPULSOS ELECTROMAGNETICOS DEL RAYO) A CAUSA DE DESCARGAS CERCA DE LA ACOMETIDA DE SERVICIOS
A114: LZ1 | B114: =B111 -> 0.001 | G114: LC = LM = LW = LZ = LO
A116: PÉRDIDA INACEPTABLE DEL SERVICIO PÚBLICO POR EXPLOSIÓN DENTRO DE LA ESTRUCTURA POR ARCO ELÉCTRICO, POR DESCARGA EN LA ESTRUCTURA
A117: rp | B117: =$B$94 -> 1 | C117: rf | D117: =$F$94 -> 0.001 | E117: Lf2 | F117: =CHOOSE('Menu principal'!$E$99,10^-1,10^-2) -> 0.1
A118: LB2 | B118: =$B$117*$D$117*$F$117 -> 0.0001 | G118: LB = LV = rP X rf X Lf2
A120: PÉRDIDA INACEPTABLE DEL SERVICIO PÚBLICO POR FALLAS DE SISTEMAS INTERNOS POR IER (IMPULSOS ELECTROMAGNETICOS DEL RAYO) A CAUSA DE DESCARGAS EN LA ESTRUCTURA
A121: LC2 | B121: =$D$121 -> 0.01 | C121: Lo2 | D121: =CHOOSE('Menu principal'!$E$99,10^-2,10^-3) -> 0.01 | G121: LC = LM = LW = LZ = LO
A123: PÉRDIDA INACEPTABLE DEL SERVICIO PÚBLICO POR FALLAS DE SISTEMAS INTERNOS POR IER (IMPULSOS ELECTROMAGNETICOS DEL RAYO) A CAUSA DE DESCARGAS CERCA DE LA ESTRUCTURA
A124: LM2 | B124: =$B$121 -> 0.01 | G124: LC = LM = LW = LZ = LO
A126: PÉRDIDA INACEPTABLE DEL SERVICIO PÚBLICO POR DAÑOS FISICOS A CAUSA DE DESCARGAS EN LA ACOMETIDA DE SERVICIOS
A127: LV2 | B127: =$B$118 -> 0.0001 | G127: LV = LB
A129: PÉRDIDA INACEPTABLE DEL SERVICIO PÚBLICO POR FALLAS DE SISTEMAS INTERNOS POR IER (IMPULSOS ELECTROMAGNETICOS DEL RAYO) A CAUSA DE DESCARGAS EN LA ACOMETIDA DE SERVICIOS
A130: LW2 | B130: =$B$124 -> 0.01 | G130: LC = LM = LW = LZ = LO
A132: PÉRDIDA INACEPTABLE DEL SERVICIO PÚBLICO POR IER (IMPULSOS ELECTROMAGNETICOS DEL RAYO) A CAUSA DE DESCARGAS CERCANAS LA ACOMETIDA DE SERVICIOS
A133: LZ2 | B133: =$B$130 -> 0.01 | G133: LC = LM = LW = LZ = LO
A135: PÉRDIDAS DE PATRIMONIO CULTURAL IRREEMPLAZABLES POR FUEGO O EXPLOSIÓN DENTRO DE LA ESTRUCTURA POR ARCO ELÉCTRICO POR IMPACTO SOBRE LA ESTRUCTURA
A136: rp | B136: =$B$94 -> 1 | C136: rf | D136: =$F$94 -> 0.001 | E136: Lf | F136: =10^-1 -> 0.1
A137: LB3 | B137: =$B$136*$D$136*$F$136 -> 0.0001 | G137: LB3 = LV3 = rP X rf X Lf
A139: PÉRDIDAS DE PATRIMONIO CULTURAL IRREEMPLAZABLES POR DAÑOS FÍSICOS A CAUSA DE DESCARGAS DOBRE LAS ACOMETIDAS DE SERVICIOS
A140: LV3 | B140: =$B$137 -> 0.0001 | G140: LB3 = LV3
A142: PÉRDIDAS ECONOMICAS POR VOLTAJES DE PASO Y CONTACTO EN EL EXTERIOR DE LA ESTRUCTURA
A143: ra | B143: =CHOOSE('Menu principal'!$G$12,10^-2,10^-3,10^-4,10^-5) -> 1e-05 | C143: Lt4 | D143: =IF('Menu principal'!$G$89=TRUE,10^-2,0) -> 0.01
A144: LA4 | B144: =$B$143*$D$143 -> 1e-07 | G144: LA = ra X Lt
A146: PÉRDIDAS ECONOMICAS POR FUEGO O EXPLOSIÓN DENTRO DE LA ESTRUCTURA POR ARCO ELÉCTRICO POR DESCARGA SOBRE LA ESTRUCTURA
A147: rp | B147: =CHOOSE('Menu principal'!$G$95,1,0.5,0.2) -> 1 | C147: hz | D147: =CHOOSE('Menu principal'!$G$97,1,2,5,5,10,20,50) -> 1 | E147: rf | F147: =CHOOSE('Menu principal'!$E$91,0,10^-3,10^-2,10^-1,1) -> 0.001 | G147: Lf4 | H147: =CHOOSE('Menu principal'!$G$104,0.5,0.2,0.1) -> 0.5
A148: LB4 | B148: =$B$147*$D$147*$F$147*$H$147 -> 0.0005 | G148: LB = LV = rP X hz X rf X Lf
A150: PÉRDIDAS ECONOMICAS POR FALLA DE SISTEMAS INTERNOS POR IER (IMPULSOS ELECTROMAGNETICOS DEL RAYO) A CAUSA DE DESCARGAS EN LA ESTRUCTURA
A151: LC4 | B151: =$D$151 -> 0.01 | C151: Lo4 | D151: =CHOOSE('Menu principal'!$G$103,10^-1,10^-2,10^-3,10^-4) -> 0.01 | G151: LC = LM = LW = LZ = LO
A153: PÉRDIDAS ECONOMICAS POR FALLA DE SISTEMAS INTERNOS POR IER (IMPULSOS ELECTROMAGNETICOS DEL RAYO) A CAUSA DE DESCARGAS CERCA DE LA ESTRUCTURA
A154: LM4 | B154: =$B$151 -> 0.01 | G154: LC = LM = LW = LZ = LO
A156: PÉRDIDAS ECONOMICAS POR VOLTAJES DE PASO Y CONTACTO EN EL INTERIOR DE LA ESTRUCTURA
A157: ru | B157: =CHOOSE('Menu principal'!$G$11,10^-2,10^-3,10^-4,10^-5) -> 0.01 | C157: LtU4 | D157: =IF('Menu principal'!$G$88=TRUE,10^-4,0) -> 0.0001
A158: LU4 | B158: =$B$157*$D$157 -> 1e-06 | G158: LU = rU X Lt
A160: PÉRDIDAS ECONOMICAS POR DAÑOS FISICOS A CAUSA DE DESCARGAS EN ACOMETIDAS DE SERVICIOS
A161: LV4 | B161: =$B$148 -> 0.0005
A163: PÉRDIDAS ECONOMICAS POR FALLA DE SISTEMAS INTERNOS POR IER (IMPULSOS ELECTROMAGNETICOS DEL RAYO) A CAUSA DE DESCARGAS EN LA ACOMETIDA DE SERVICIOS
A164: LW4 | B164: =$B$154 -> 0.01 | G164: LC = LM = LW = LZ = LO
A166: PÉRDIDAS ECONOMICAS POR FALLA DE SISTEMAS INTERNOS POR IER (IMPULSOS ELECTROMAGNETICOS DEL RAYO) A CAUSA DE DESCARGAS CERCA DE LA ACOMETIDA DE SERVICIOS
A167: LZ4 | B167: =$B$164 -> 0.01 | G167: LC = LM = LW = LZ = LO
A169: EVALUACIÓN DE RIESGOS
A171: DESCARGA SOBRE ESTRUCTURA S1 PARA DAÑO D1 (L1 PÉRDIDAS DE VIDAS HUMANAS)
A172: RA1 | B172: =$B$9*$B$54*$B$91 -> 1.658572934e-08 | G172: RA1 = ND X PA X LA1
A174: DESCARGA SOBRE ESTRUCTURA S1 PARA DAÑO D1 (L4 PÉRDIDAS DE VIDAS DE ANIMALES)
A175: RA4 | B175: =$B$9*$B$54*$B$144 -> 1.658572934e-08 | G175: RA4 = ND X PA X LA4
A177: DESCARGA SOBRE ESTRUCTURA S1 PARA DAÑO D2 (L1 PÉRDIDAS DE VIDAS HUMANAS)
A178: RB1 | B178: =$B$9*$B$57*$B$95 -> 1.658572934e-05 | G178: RB1 = ND X PB X LB1
A180: DESCARGA SOBRE ESTRUCTURA S1 PARA DAÑO D2 (L2 PÉRDIDAS DEL SERVICIO PÚBLICO)
A181: RB2 | B181: =$B$9*$B$57*$B$118 -> 1.658572934e-05 | G181: RB2 = ND X PB X LB2
A183: DESCARGA SOBRE ESTRUCTURA S1 PARA DAÑO D2 (L3 PÉRDIDAS DE VALOR CULTURAL)
A184: RB3 | B184: =IF('Menu principal'!$K$101=FALSE,0,$B$9*$B$57*$B$137) -> 1.658572934e-05 | G184: RB3 = ND X PB X LB3
A186: DESCARGA SOBRE ESTRUCTURA S1 PARA DAÑO D2 (L4 PÉRDIDAS ECONOMICAS)
A187: RB4 | B187: =IF('Menu principal'!$K$105=FALSE,0,$B$9*$B$57*$B$148) -> 0 | G187: RB4 = ND X PB X LB4
A189: DESCARGA SOBRE LA ESTRUCTURA S1 PARA DAÑO D3 (L1 PÉRDIDAS DE VIDAS HUMANAS)
A190: RC1 | B190: =$B$9*$B$60*$B$98 -> 0.0001658572934 | G190: RC1 = ND X PC X LC1
A192: DESCARGA SOBRE ESTRUCTURA S1 PARA DAÑO D3 (L2 PÉRDIDAS DEL SERVICIO PÚBLICO)
A193: RC2 | B193: =$B$9*$B$60*$B$121 -> 0.001658572934 | G193: RC2 = ND X PC X LC2
A195: DESCARGA SOBRE ESTRUCTURA S1 PARA DAÑO D3 (L4 PÉRDIDAS ECONOMICAS)
A196: RC4 | B196: =$B$9*$B$60*$B$151 -> 0.001658572934 | G196: RC4 = ND X PC X LC4
A198: DESCARGA CERCA A ESTRUCTURA S2 PARA DAÑO D3 (L1 PÉRDIDAS DE VIDAS HUMANAS)
A199: RM1 | B199: =$B$25*$B$67*$B$101 -> 9.783904109e-08 | G199: RM1 = NM X PM X LM1
A201: DESCARGA CERCA A ESTRUCTURA S2 PARA DAÑO D3 (L2 PÉRDIDAS DEL SERVICIO PÚBLICO)
A202: RM2 | B202: =$B$25*$B$67*$B$124 -> 9.783904109e-07 | G202: RM2 = NM X PM X LM2
A204: DESCARGA CERCA A ESTRUCTURA S2 PARA DAÑO D3 (L4 PÉRDIDAS ECONOMICAS)
A205: RM4 | B205: =$B$25*$B$67*$B$154 -> 9.783904109e-07 | G205: RM4 = NM X PM X LM4
A207: DESCARGA SOBRE ACOMETIDA DE POTENCIA CONECTADO A LA ESTRUCTURA S3 PARA DAÑO D1 ( L1 PERDIDAS VIDAS HUMANAS POR VOLTAJES DE CONTACTO )
A208: RU1(P) | B208: =($B$29+$B$13)*$B$73*$B$105 -> 1.258406256e-07 | G208: RU(P) = (NL(P)+ Nda(P)) X PU X LU
A210: DESCARGA SOBRE ACOMETIDA DE TELECOMUNICACIONES CONECTADO A LA ESTRUCTURA S3 PARA DAÑO D1 ( L1 PERDIDAS VIDAS HUMANAS POR VOLTAJES DE CONTACTO )
A211: RU1(T) | B211: =IF('Menu principal'!$G$33=0,0,($B$33+$B$17)*$B$73*$B$105) -> 0 | G211: RU(T) = (NL(T)+ Nda(T)) X PU X LU
A213: DESCARGA SOBRE ACOMETIDA DE OTRO SERVICIO CONECTADO A LA ESTRUCTURA S3 PARA DAÑO D1 ( L1 PERDIDAS VIDAS HUMANAS POR VOLTAJES DE CONTACTO )
A214: RU1(O) | B214: =IF('Menu principal'!$G$43=0,0,($B$37+$B$21)*$B$73*$B$105) -> 0 | G214: RU(O) = (NL(O)+ Nda(O)) X PU X LU
A216: DESCARGA SOBRE ACOMETIDA DE POTENCIA CONECTADO A LA ESTRUCTURA S3 PARA DAÑO D1 ( LU4 PERDIDAS VIDAS DE ANIMALES POR VOLTAJES DE CONTACTO )
A217: RU4(P) | B217: =($B$29+$B$13)*$B$73*$B$158 -> 1.258406256e-07 | G217: RU4) = (NL+ Nda) X PU X LU4
A219: DESCARGA SOBRE ACOMETIDA DE SERVICIO TELECOMUNICACIONES S3 PARA DAÑO D1 ( LU4 PERDIDAS VIDAS DE ANIMALES POR VOLTAJES DE CONTACTO )
A220: RU4(T) | B220: =IF('Menu principal'!$G$33=0,0,($B$33+$B$17)*$B$73*$B$158) -> 0 | G220: RU4(T) = (NL(T)+ Nda(T)) X PU X LU4
A222: DESCARGA SOBRE ACOMETIDA DE OTRO SERVICIO S3 PARA DAÑO D1 ( LU4 PERDIDAS VIDAS DE ANIMALES POR VOLTAJES DE CONTACTO )
A223: RU4(O) | B223: =IF('Menu principal'!$G$43=0,0,($B$37+$B$21)*$B$73*$B$158) -> 0 | G223: RU4(O) = (NL(O)+ Nda(O)) X PU X LU4
A225: DESCARGA SOBRE ACOMETIDA POTENCIA S3 PARA DAÑO D2 ( LV1 PARA PÉRDIDAS DE VIDAS HUMANAS)
A226: RV11 | B226: =($B$29+$B$13)*$B$76*$B$108 -> 1.258406256e-05 | G226: RV11 = (NL(P)+ Nda(P)) X PV X LV1
A228: DESCARGA SOBRE ACOMETIDA COMUNICACIONES S3 PARA DAÑO D2 ( LV1 PARA PÉRDIDAS DE VIDAS HUMANAS)
A229: RV12 | B229: =IF('Menu principal'!$G$33=0,0,($B$33+$B$17)*$B$76*$B$108) -> 0 | G229: RV12 = (NL(T)+ Nda(T)) X PV X LV1
A231: DESCARGA SOBRE ACOMETIDA OTROS S3 PARA DAÑO D2 ( LV1 PARA PÉRDIDAS DE VIDAS HUMANAS)
A232: RV13 | B232: =IF('Menu principal'!$G$33=0,0,($B$33+$B$17)*$B$76*$B$108) -> 0 | G232: RV13 = (NL(O)+ Nda(O)) X PV X LV1
A234: DESCARGA SOBRE ACOMETIDA POTENCIA S3 PARA DAÑO D2 ( LV2 PARA PÉRDIDAS DE SERVICIO PUBLICO)
A235: RV21 | B235: =($B$29+$B$13)*$B$76*$B$127 -> 1.258406256e-05 | G235: RV21 = (NL(P)+ Nda(P)) X PV X LV2
A237: DESCARGA SOBRE ACOMETIDA COMUNICACIONES S3 PARA DAÑO D2 ( LV2 PARA PÉRDIDAS DE SERVICIO PUBLICO)
A238: RV22 | B238: =IF('Menu principal'!$G$33=0,0,(B33+B17)*B76*B127) -> 0 | G238: RV22 = (NL(T)+ Nda(T)) X PV X LV2
A240: DESCARGA SOBRE ACOMETIDA OTROS S3 PARA DAÑO D2 ( LV2 PARA PÉRDIDAS DE SERVICIO PUBLICO)
A241: RV23 | B241: =IF('Menu principal'!$G$43=0,0,(B37+B21)*B76*B127) -> 0 | G241: RV32 = (NL(O)+ Nda(O)) X PV X LV2
A243: DESCARGA SOBRE ACOMETIDA POTENCIA S3 PARA DAÑO D2 ( LV3 PARA PÉRDIDAS VALOR CULTURAL)
A244: RV31 | B244: =IF('Menu principal'!$K$101=TRUE,($B$29+$B$13)*$B$76*$B$140,0) -> 1.258406256e-05 | G244: RV31 = (NL(P)+ Nda(P)) X PV X LV3
A246: DESCARGA SOBRE ACOMETIDA COMUNICACIONES S3 PARA DAÑO D2 ( LV3 PARA PÉRDIDAS VALOR CULTURAL)
A247: RV32 | B247: =IF('Menu principal'!$G$33=0,0,IF('Menu principal'!$K$101=TRUE,($B$33+$B$17)*$B$76*$B$140,0)) -> 0 | G247: RV32 = (NL(T)+ Nda(T)) X PV X LV3
A249: DESCARGA SOBRE ACOMETIDA OTROS S3 PARA DAÑO D2 ( LV3 PARA PÉRDIDAS VALOR CULTURAL)
A250: RV33 | B250: =IF('Menu principal'!$G$43=0,0,IF('Menu principal'!$K$101=TRUE,($B$37+$B$21)*$B$76*$B$140,0)) -> 0 | G250: RV33 = (NL(O)+ Nda(O)) X PV X LV3
A252: DESCARGA SOBRE ACOMETIDA POTENCIA S3 PARA DAÑO D2 ( LV4 PARA PÉRDIDAS ECONOMICAS)
A253: RV41 | B253: =IF('Menu principal'!$K$105=TRUE,($B$29+$B$13)*$B$76*$B$161,0) -> 0 | G253: RV41 = (NL(P)+ Nda(P)) X PV X LV4
A255: DESCARGA SOBRE ACOMETIDA COMUNICACIONES S3 PARA DAÑO D2 ( LV4 PARA PÉRDIDAS ECONOMICAS)
A256: RV42 | B256: =IF('Menu principal'!$G$33=0,0,IF('Menu principal'!$K$105=TRUE,($B$33+$B$17)*$B$76*$B$161,0)) -> 0 | G256: RV42 = (NL(T)+ Nda(T)) X PV X LV4
A258: DESCARGA SOBRE ACOMETIDA OTROS S3 PARA DAÑO D2 ( LV4 PARA PÉRDIDAS ECONOMICAS)
A259: RV43 | B259: =IF('Menu principal'!$G$43=0,0,IF('Menu principal'!$K$105=TRUE,($B$37+$B$21)*$B$76*$B$161,0)) -> 0 | G259: RV43 = (NL(O)+ Nda(O)) X PV X LV4
A261: DESCARGA SOBRE ACOMETIDA POTENCIA S3 PARA DAÑO D3 ( LW1 PARA PÉRDIDAS VIDAS HUMANAS)
A262: RW11 | B262: =($B$29+$B$13)*$B$79*$B$111 -> 0.0001258406256 | G262: RW11 = (NL(P)+ Nda(P)) X PW X LW1
A264: DESCARGA SOBRE ACOMETIDA COMUNICACIONES S3 PARA DAÑO D3 ( LW1 PARA PÉRDIDAS VIDAS HUMANAS)
A265: RW12 | B265: =IF('Menu principal'!$G$33=0,0,($B$33+$B$17)*$B$79*$B$111) -> 0 | G265: RW21 = (NL(T)+ Nda(T)) X PW X LW1
A267: DESCARGA SOBRE ACOMETIDA OTROS S3 PARA DAÑO D3 ( LW1 PARA PÉRDIDAS VIDAS HUMANAS)
A268: RW13 | B268: =IF('Menu principal'!$G$43=0,0,($B$37+$B$21)*$B$79*$B$111) -> 0 | G268: RW31 = (NL(0)+ Nda(0)) X PW X LW1
A270: DESCARGA SOBRE ACOMETIDA POTENCIA S3 PARA DAÑO D3 ( LW2 PARA PÉRDIDAS SERVICIO PUBLICO)
A271: RW21 | B271: =($B$29+$B$13)*$B$79*$B$130 -> 0.001258406256 | G271: RW21 = (NL(P)+ Nda(P)) X PW X LW2
A273: DESCARGA SOBRE ACOMETIDA COMUNICACIONES S3 PARA DAÑO D3 ( LW2 PARA PÉRDIDAS SERVICIO PUBLICO)
A274: RW22 | B274: =IF('Menu principal'!$G$33=0,0,($B$33+$B$17)*$B$79*$B$130) -> 0 | G274: RW22 = (NL(T)+ Nda(T)) X PW X LW2
A276: DESCARGA SOBRE ACOMETIDA OTROS S3 PARA DAÑO D3 ( LW2 PARA PÉRDIDAS SERVICIO PUBLICO)
A277: RW23 | B277: =IF('Menu principal'!$G$43=0,0,($B$37+$B$21)*$B$79*$B$130) -> 0 | G277: RW23 = (NL(O)+ Nda(O)) X PW X LW2
A279: DESCARGA SOBRE ACOMETIDA POTENCIA S3 PARA DAÑO D3 ( LW4 PARA PÉRDIDAS ECONOMICAS)
A280: RW41 | B280: =($B$29+$B$13)*$B$79*$B$164 -> 0.001258406256 | G280: RW41 = (NL(P)+ Nda(P)) X PW X LW4
A282: DESCARGA SOBRE ACOMETIDA COMUNICACIONES S3 PARA DAÑO D3 ( LW4 PARA PÉRDIDAS ECONOMICA)
A283: RW42 | B283: =IF('Menu principal'!$G$33=0,0,($B$33+$B$17)*$B$79*$B$164) -> 0 | G283: RW42 = (NL(T)+ Nda(T)) X PW X LW4
A285: DESCARGA SOBRE ACOMETIDA OTROS S3 PARA DAÑO D3 ( LW4 PARA PÉRDIDAS ECONOMICA)
A286: RW43 | B286: =IF('Menu principal'!$G$43=0,0,($B$37+$B$21)*$B$79*$B$164) -> 0 | G286: RW43 = (NL(O)+ Nda(O)) X PW X LW4
... 36 more rows

Sheet tablas de factores
E1: Diseñado por Ing. Gregor Rojas Caracas-Venezuela
A2: TABLAS DE FACTORES
A4: TABLA A.2 Factor de localización Cd
A5: Situación relativa | F5: Cd
A6: Rodeado por objetos más altos o por árboles | F6: 0.25
A7: Rodeado por objetos o árboles de la misma o menor altura | F7: 0.5
A8: Aislado sin otros objetos en las proximidades | F8: 1
A9: Aislado en la parte superior de una colina o de un montículo | F9: 2
A11: TABLA A.3 Áreas de captación AL y Ai en función de las características del servicio
C12: Aérea | E12: Enterrada
A13: Aérea | B13: Al
A14: Enterrada | B14: Ai | C14: 1000Lc
A16: TABLA A.4 Factor por transformador
A17: Transformador | F17: Ct
A18: Servicio con un transformador de dos arrollamientos | F18: 0.2
A19: Solamente el servicio | F19: 1
A21: TABLA A.5 Factor ambiental
A22: Ambiente | F22: Ce
A23: Urbano con edificios de altura superior a 20 m | F23: 0.01
A24: Urbano con edificios de altura entre 10 y 20 m | F24: 0.1
A25: Suburbano con edificios de altura inferior a 10 m | F25: 0.5
A26: Rural | F26: 1
A28: TABLA B.1 Valores de la probabilidad PA de que una descarga en la estructura produzca impactos en los seres vivos por voltajes de paso y contacto
A29: Medidas de protección | F29: PA
A30: Sin medidas de protección | F30: 1
A31: Aislamiento eléctrico de los conductores expuestos | F31: =10^-2 -> 0.01
A32: Equipotenciación efectiva del terreno | F32: =10^-2 -> 0.01
A33: Avisos | F33: =10^-1 -> 0.1
A35: TABLA B.2 Valores de PB en función de medidas de protección para reducir daños físicos
A36: Característica de la estructura | E36: Nivel | F36: PB
A37: Estructura no protegida por un SPCR | F37: 1
A38: Estructura protegida por un SPCR | E38: IV | F38: 0.2
A39: Estructura protegida por un SPCR | E39: III | F39: 0.1
A40: Estructura protegida por un SPCR | E40: III | F40: 0.05
A41: Estructura protegida por un SPCR | E41: I | F41: 0.02
A42: Estructura con SPCR nivel I, con armaduras metálicas continuas o armaduras del hormigón actuando como conductores de bajada | F42: 0.01
A43: SPCR completo, techo metálico con armaduras metálicas continuas actuando como conductores de bajada | F43: 0.001
A45: TABLA B.3 Valores de PSPD en función de nivel de protección para el que se han diseñado los dispositivos DPS
A46: Nivel de protección | F46: PSPD
A47: Sin protección coordinada de dispositivos DPS | F47: 1
A48: Protección interna coordinada con DPS Nivel III o IV | F48: 0.03
A49: Protección interna coordinada con DPS Nivel II | F49: 0.02
A50: Protección interna coordinada con DPS Nivel I | F50: 0.01
A51: Utilización de DPS con mejores características al Nivel I | F51: 0,005 - 0,001
A53: TABLA B.4 Valores de PMS en función de KMS
A54: KMS | D54: PMS
A55: >= 0,4 | D55: 1
A56: 0.15 | D56: 0.9
A57: 0.07 | D57: 0.5
A58: 0.035 | D58: 0.1
A59: 0.021 | D59: 0.01
A60: 0.016 | D60: 0.005
A61: 0.015 | D61: 0.003
A62: 0.014 | D62: 0.001
A63: <=0,013 | D63: 0.0001
A65: TABLA B.5 Valor del factor KS3 en función del cableado interno
A66: Nivel de protección | F66: PSPD
A67: Sin apantallar y sin precauciones de cableado para evitar bucles, área del lazo en el orden de 50 m2 | F67: 1
A68: Sin apantallar y con precauciones de cableado para evitar grandes bucles, área del lazo en el orden de 10 m2 | F68: 0.2
A69: Sin apantallar y con precauciones de cableado para evitar bucles, área del lazo en el orden de 0,5 m2 | F69: 0.02
A70: Apantallado con resistencia de la pantalla entre 5<Rs<20 Ω/Km, PAT ambos extremos a barra equipotencial | F70: 0.001
A71: Apantallado con resistencia de la pantalla entre 1<Rs<5 Ω/Km, PAT ambos extremos a barra equipotencial | F71: 0.0002
A72: Apantallado con resistencia de la pantalla entre 1<Rs Ω/Km, PAT ambos extremos a barra equipotencial | F72: 0.0001
A74: TABLA B.6 Valores de PLD en función de la resistencia RS de la pantalla del cable y del voltaje soportado a impulso UW del equipo
A75: UW KV | D75: 5 < Rs < 20 ohm/Km | E75: 1 < Rs < 5 ohm/Km | F75: Rs < 1 ohm/Km
A76: 1.5 | D76: 1 | E76: 0.8 | F76: 0.4
A77: 2.5 | D77: 0.95 | E77: 0.6 | F77: 0.2
A78: 4 | D78: 0.9 | E78: 0.3 | F78: 0.04
A79: 6 | D79: 0.8 | E79: 0.1 | F79: 0.02
A81: TABLA B.7 Valores de PLI en función de la resistencia RS de la pantalla del cable y de la tensión soportada a impulso UW del equipo
A82: UW KV | B82: Sin pantalla | C82: Pantalla sin conectar a barra equipotencial del equipo | D82: pantalla conectada a barra equipotencial a la que conecta el equipo
D83: 5 < Rs < 20 ohm/Km | E83: 1 < Rs < 5 ohm/Km | F83: Rs < 1 ohm/Km
A84: 1.5 | B84: 1 | C84: 0.5 | D84: 0.15 | E84: 0.04 | F84: 0.02
A85: 2.5 | B85: 0.4 | C85: 0.2 | D85: 0.06 | E85: 0.02 | F85: 0.008
A86: 4 | B86: 0.2 | C86: 0.1 | D86: 0.03 | E86: 0.008 | F86: 0.004
A87: 6 | B87: 0.1 | C87: 0.05 | D87: 0.02 | E87: 0.004 | F87: 0.002
A90: TABLA C.1 Valores medios típicos de Lt, Lf y Lo (Perdidas vidas Humanas)
A91: Tipo de estructura | F91: Lt
A92: Todo tipo (Personas en interior de edificio) | F92: =10^-4 -> 0.0001
A93: Todo tipo (Personas en exterior de edificio) | F93: =10^-2 -> 0.01
A94: Tipo de estructura | F94: Lf
A95: Hospitales, hoteles, edificios públicos | F95: =10^-1 -> 0.1
A96: Industriales, comerciales, escuelas | F96: =5*10^-2 -> 0.05
A97: Entretenimiento público, iglesias, museos | F97: =2*10^-2 -> 0.02
A98: Otros | F98: =10^-2 -> 0.01
A99: Tipo de estructura | F99: Lo
A100: Con riesgo de explosión | F100: =10^-1 -> 0.1
A101: Hospitales | F101: =10^-3 -> 0.001
A103: TABLA C.2 Valores factores reductores ra y ru en función del tipo del terreno y del suelo
A104: tipo de superficie | C104: Resistencia de contacto | E104: ra y ru
A105: Agrícola, hormigón | C105: < 1 | E105: =10^-2 -> 0.01
A106: Mármol, cerámica. | C106: 1 - 10 | E106: =10^-3 -> 0.001
A107: Grava, moqueta, alfombra | C107: 10 - 100 | E107: =10^-4 -> 0.0001
A108: Asfalto, linóleo, madera | C108: > 100 | E108: =10^-5 -> 1e-05
A110: TABLA C.3 Valores del factor reductor rp en función de medidas tomadas para reducir efectos del fuego
A111: Medida de prevención | F111: rp
A112: Sin medidas | F112: 1
A113: Una de las siguiente medidas: Extintores; rociadores; instalaciones de alarma manual; hidrantes; compartimientos contra fuego; vías de evacuación | F113: 0.5
A114: Una de las siguiente medidas: instalaciones fijas de extinción automáticas; instalaciones automáticas de alarma | F114: 0.2
A116: TABLA C.4 Valores del factor reductor Rf en función del riesgo de incendio en la estructura
A117: Riesgo por fuego | F117: Rf
A118: Ninguno | F118: 0
A119: Bajo (Estructuras que almacenen material combustible ocasionalmente) | F119: =10^-3 -> 0.001
A120: Normal (Estructuras que almacenen material combustible en forma permanente) | F120: =10^-2 -> 0.01
A121: Alto (Estructura fabricada con material combustible) | F121: =10^-1 -> 0.1
A122: Severo (Estructura con riesgo de explosión) | F122: 1
A124: TABLA C.5 Valores del factor amplificador hz de daños físicos por presencia de un daño especial
A125: ´Tipos de daños especiales | F125: hz
A126: Sin daño especial | F126: 1
A127: Nivel bajo de pánico (edificación limitada a 2 pisos y número de personas inferior a 100) | F127: 2
A128: Nivel medio de pánico (edificaciones para eventos culturales o deportivos, de 100 a 1000 personas) | F128: 5
A129: Dificultad de evacuación (edificación con personas invalidas, hospitales) | F129: 5
A130: Nivel alto de pánico (edificaciones para eventos culturales o deportivos, con mas de 1000 personas) | F130: 10
A131: Riesgo para el medio ambiente o los alrededores | F131: 20
A132: Contaminación de los alrededores o del medio ambiente | F132: 50
A134: TABLA C.6 Valores medios típicos de Lf y Lo (Perdidas inaceptables de servicio público)
A135: Tipo de servicio | E135: Lf | F135: Lo
A136: Gas, agua | E136: =10^-1 -> 0.1 | F136: =10^-2 -> 0.01
A137: TV, Telecomunicaciones, red de potencia | E137: =10^-2 -> 0.01 | F137: =10^-3 -> 0.001
A139: TABLA C.7 Valores medios típicos de Lt, Lf y Lo (Perdidas económicas)
A140: Tipo de estructura | F140: Lt
A141: Todo tipo (Interior de la edificación) | F141: =10^-4 -> 0.0001
A142: Todo tipo (Exterior de la edificación) | F142: =10^-2 -> 0.01
A143: Tipo de estructura | F143: Lf
A144: Hospitales, industrial, museo, agricultura | F144: 0.5
A145: Hotel, comerciales, escuela, oficina, iglesia, entretenimiento público | F145: 0.2
A146: Otros | F146: 0.1
A147: Tipo de estructura | F147: Lo
A148: Con riesgo de explosión | F148: =10^-1 -> 0.1
A149: Hospitales, industrial, oficina, hoteles, edificios comercial | F149: =10^-2 -> 0.01
A150: Museo, agricultura, escuelas, iglesias, entretenimiento público | F150: =10^-3 -> 0.001
A151: Otros | F151: =10^-4 -> 0.0001

Sheet imagenes
W1: Diseñado por Ing. Gregor Rojas Caracas-Venezuela
B2: DIMENSIONES DE LA ESTRUCTURA EN FORMA COMPLEJA
I4: ='Menu principal'!G4&" m (L)" -> 40 m (L)
H5: ='Menu principal'!G5&" m (W)" -> 50 m (W)
S9: =8&" m" -> 8 m
R10: =8&" m" -> 8 m
O13: VISTA DE PLANTA
W18: ='Menu principal'!G8&" m (Hp)" -> 5 m (Hp)
G19: ='Menu principal'!G6&" m (W)" -> 25 m (W)
O22: VISTA LATERAL
W26: Diseñado por Ing. Gregor Rojas Caracas-Venezuela
B28: DIMENSIONES DE LA ESTRUCTURA A PROTEGER Y DE LA ADYACENTE
B29: POTENCIA
B31: Ad = | C31: =Calculos!$B$8 -> 33171.45868 | J31: Ai(P) = | K31: =Calculos!B40 -> 0 | U31: Ad(P)= | V31: =Calculos!B12 -> 7761.725124
B32: Am = | C32: =Calculos!$B$24 -> 228849.5408 | J32: Al(P) = | K32: =Calculos!B28 -> -1469.693846
F36: ='Menu principal'!G4&" m (Lb)" -> 40 m (Lb) | O36: 2 Di | V36: ='Menu principal'!$G$18&" m (La)" -> 10 m (La)
C38: ='Menu principal'!G5&" m (W)" -> 50 m (W) | Z38: ='Menu principal'!$G$19&" m (Wa)" -> 5 m (Wa)
N43: ='Menu principal'!$G$36&" m (L)" -> 0 m (L)
B44: Estructura a proteger | U44: Estructura adyacente
W51: Diseñado por Ing. Gregor Rojas Caracas-Venezuela
B53: DIMENSIONES DE LA ESTRUCTURA A PROTEGER Y DE LA ADYACENTE
B54: TELECOMUNICACIONES
B56: Ad = | C56: =Calculos!$B$8 -> 33171.45868 | J56: Ai(T) = | K56: =Calculos!B44 -> 0 | U56: Ad(T)= | V56: =Calculos!B16 -> 0
B57: Am = | C57: =Calculos!$B$24 -> 228849.5408 | J57: Al(T) = | K57: =Calculos!B32 -> 0
F61: ='Menu principal'!G4&" m (Lb)" -> 40 m (Lb) | O61: 2 Di | V61: ='Menu principal'!$G$29&" m (La)" -> 0 m (La)
C63: ='Menu principal'!G5&" m (W)" -> 50 m (W) | Z63: ='Menu principal'!$G$30&" m (Wa)" -> 0 m (Wa)
N68: ='Menu principal'!$G$46&" m (L)" -> 0 m (L)
B69: Estructura a proteger | U69: Estructura adyacente
W76: Diseñado por Ing. Gregor Rojas Caracas-Venezuela
B78: DIMENSIONES DE LA ESTRUCTURA A PROTEGER Y DE LA ADYACENTE
B79: OTROS SERVICIOS
B81: Ad = | C81: =Calculos!$B$8 -> 33171.45868 | J81: Ai(O) = | K81: =Calculos!B48 -> 0 | U81: Ad(O)= | V81: =Calculos!B20 -> 0
B82: Am = | C82: =Calculos!$B$24 -> 228849.5408 | J82: AlO) = | K82: =Calculos!B36 -> 0
F86: ='Menu principal'!$G$4&" m (Lb)" -> 40 m (Lb) | O86: 2 Di | V86: ='Menu principal'!$G$39&" m (La)" -> 0 m (La)
C88: ='Menu principal'!$G$5&" m (W)" -> 50 m (W) | Z88: ='Menu principal'!$G$40&" m (Wa)" -> 0 m (Wa)
N93: ='Menu principal'!$G$25&" m (L)" -> 0 m (L)
B94: Estructura a proteger | U94: Estructura adyacente

Sheet DDT
I1: Diseñado por Ing. Gregor Rojas Caracas-Venezuela
B3: MAPA CENAURICO DE VENEZUELA | G3: TABLA DE DDT EN CIUDADES CAPITALES
G5: Ciudades Capitales | H5: Latitud | I5: Longitud | J5: Densidad Promedio (DDT) (Número de Descargas/km2/Año)
G6: Barcelona | H6: 10°04'0″ N | I6: - 64°43'0″ O | J6: 2
G7: Barinas | H7: 8°38′ N | I7: - 70°12′ O | J7: 2
G8: Barquisimeto | H8: 10º04' N | I8: - 69º18' O | J8: 4
G9: Caracas | H9: 10°30'0″ N | I9: - 66°55'0″ O | J9: 1
G10: Ciudad Bolívar | H10: 8°05'15" N | I10: - 63°31'39" O | J10: 2
G11: Coro | H11: 11º24' N | I11: - 69º41' O | J11: 4
G12: Cumaná | H12: 10°27'23″ N | I12: - 64°10′3″ O | J12: 1
G13: Guanare | H13: 9º02’37” N | I13: - 68º44’56” O | J13: 6
G14: La Asunción | H14: 11°01′39″ N | I14: - 63°51′46″ O | J14: 0.5
G15: La Guaira | H15: 10º36' N | I15: - 66º55' O | J15: 1
G16: Los Teques | H16: 10º20'34" N | I16: - 67º02'44" O | J16: 1.5
G17: Maracaibo | H17: 10°37'0″ N | I17: - 71º37'0" O | J17: 20
G18: Maracay | H18: 10º14'49" N | I18: - 67º35'45" O | J18: 2
G19: Maturín | H19: 9º42'49" N | I19: - 63º11'15" O | J19: 2
G20: Mérida | H20: 8°34'0″ N | I20: - 71º7'0" O | J20: 2
G21: Puerto Ayacucho | H21: 5º35'40" N | I21: - 67º41'49" O | J21: 3
G22: San Carlos | H22: 9°39'30" N | I22: - 68°35'24" O | J22: 4
G23: San Cristobal | H23: 7º46' N | I23: - 72º14' O | J23: 1
G24: San Felipe | H24: 10º20'25" N | I24: - 68º44'09" O | J24: 4
G25: San Fernando de Apure | H25: 7°54′0″ N | I25: - 67°28′0″ O | J25: 8
G26: San Juan de los Morros | H26: 09º54'39" N | I26: - 67º21'29" O | J26: 2
G27: Trujillo | H27: 09º22'0" N | I27: - 70º25'59" O | J27: 2
G28: Tucupita | H28: 09°03'33" N | I28: - 62°04'05" O | J28: 1
G29: Valencia | H29: 10°10′0″ N | I29: - 68°0′0″ O | J29: 3

Sheet Instrucciones
